fUSD/lending_fUSD_20250403
["ID","MTS","AMOUNT","RATE_DAILY","PERIOD"]
[357077777,1743694240465,-60817.0627739,0.0002,2]
[357077779,1743694240694,-437.75824297,0.0002,2]
[357077780,1743694240705,-538.6762156,0.0002,2]
[357077782,1743694240717,-354.32312405,0.0002,2]
[357077801,1743694243141,-5961.75382091,0.0002,2]
[357077816,1743694244254,-81722.0080916,0.0002,2]
[357077817,1743694244269,-232478.08898311,0.0002,2]
[357077818,1743694244279,-1285.09837437,0.0002,2]
[357077819,1743694244289,-13068.12007172,0.0002,4]
[357077820,1743694244300,-45174.49463709,0.0002,4]
[357077821,1743694244310,-151.61,0.0002,2]
[357077822,1743694244320,-2000.0,0.00020384,4]
[357077823,1743694244330,-258.68247833,0.000217,2]
[357077824,1743694244342,-246.88933364,0.00022,2]
[357077825,1743694244352,-500.0,0.00022,2]
[357077826,1743694244362,-4974.29770333,0.00022069,2]
[357077827,1743694244373,-885.60447678,0.0002235,2]
[357077828,1743694244383,-1128.97271469,0.000225,2]
[357077829,1743694244393,-50188.77843811,0.000232,2]
[357077830,1743694244403,-200.0,0.000235,2]
[357077831,1743694244413,-151.61,0.000236,2]
[357077832,1743694244423,-12380.37648292,0.0002361,7]
[357077833,1743694244434,-891.27442563,0.000239,2]
[357077834,1743694244443,-500.0,0.00023998,2]
[357077835,1743694244453,-51525.18999636,0.00024,2]
[357077836,1743694244463,-981.74000518,0.00024,2]
[357077837,1743694244474,-5000.00104112,0.00024,5]
[357077838,1743694244484,-40693.21471052,0.00024,2]
[357077839,1743694244494,-783.56345028,0.0002402,2]
[357077840,1743694244504,-150.99,0.0002402,2]
[357077841,1743694244514,-405.64407445,0.0002421,2]
[357077842,1743694244526,-3554.42197931,0.0002421,2]
[357077843,1743694244535,-4974.29770333,0.00024238,2]
[357077844,1743694244545,-2000.0,0.00024307,4]
[357077845,1743694244555,-501.77792923,0.00024773,2]
[357077846,1743694244565,-502.3331237,0.00024773,2]
[357077847,1743694244575,-501.82652474,0.00024773,2]
[357077848,1743694244584,-501.06533207,0.00024773,2]
[357077849,1743694244594,-500.0,0.00024773,2]
[357077850,1743694244604,-500.0,0.00024773,2]
[357077851,1743694244615,-209.24264523,0.00024773,2]
[357077852,1743694244625,-151.61,0.0002479,2]
[357077853,1743694244635,-229.07428485,0.0002479,2]
[357077854,1743694244645,-338291.845558,0.000248,2]
[357077855,1743694244654,-885.60447678,0.000248,2]
[357077856,1743694244664,-24211.474171,0.000249,2]
[357077857,1743694244674,-199.59243278,0.00025,2]
[357077858,1743694244684,-1600.85830672,0.00025,2]
[357077859,1743694244694,-255.93090405,0.00025,2]
[357077860,1743694244704,-212.37519869,0.00025,2]
[357077861,1743694244713,-200.0,0.00025,2]
[357077862,1743694244723,-1626.70666698,0.00025,7]
[357077863,1743694244732,-15376.9020708,0.00025373,2]
[357077864,1743694244742,-1424.204363,0.00025373,2]
[357077865,1743694244751,-574.0,0.00025383,2]
[357077866,1743694244760,-1366.0,0.00025383,2]
[357077867,1743694244772,-1434.0,0.00025383,2]
[357077868,1743694244781,-1276.0,0.00025383,2]
[357077869,1743694244791,-789.0,0.00025383,2]
[357077870,1743694244801,-543.0,0.00025383,2]
[357077871,1743694244811,-4095.0,0.00025383,2]
[357077872,1743694244821,-909.0,0.00025383,2]
[357077873,1743694244831,-151.0,0.00025383,2]
[357077874,1743694244840,-3949.0,0.00025383,2]
[357077875,1743694244851,-1284.0,0.00025383,2]
[357077876,1743694244861,-2047.043,0.00025383,2]
[357077877,1743694244871,-3053.27137178,0.00026,2]
[357077878,1743694244881,-701.50433219,0.000264,2]
[357077879,1743694244891,-4974.29770333,0.00026407,2]
[357077880,1743694244901,-474.88,0.00026849,2]
[357077881,1743694244910,-250.0,0.00027,2]
[357077882,1743694244920,-994.78179243,0.00027,2]
[357077883,1743694244930,-592.7,0.00027397,2]
[357077884,1743694244939,-300.0,0.00027397,30]
[357077885,1743694244948,-193.19166393,0.000275,2]
[357077886,1743694244958,-202.79929198,0.000275,2]
[357077887,1743694244968,-2000.0,0.0002823,4]
[357077888,1743694244978,-4974.29770333,0.00028576,2]
[357077889,1743694244988,-592.7,0.00028767,2]
[357077890,1743694244998,-1478.87229132,0.00028978,2]
[357077891,1743694245008,-683.83893294,0.00029,2]
[357077892,1743694245019,-75460.19667033,0.000299,2]
[357077893,1743694245028,-1424.204363,0.0002999,2]
[357077894,1743694245039,-228.15537472,0.0002999,2]
[357077895,1743694245049,-151.61,0.0002999,2]
[357077896,1743694245058,-2272.95888042,0.0003,2]
[357077897,1743694245068,-17452.2668514,0.0003,2]
[357077898,1743694245079,-80342.42865211,0.0003,2]
[357077899,1743694245200,180.0,0.00034884,30]
[357077902,1743694246062,-4190.9342,0.000199,2]
[357077903,1743694246073,-151.0,0.00025383,2]
[357077904,1743694246087,-124768.58170865,0.0003,2]
[357077905,1743694246097,-266.3034601,0.0003,2]
[357077906,1743694246106,-1744.74854869,0.0003,2]
[357077907,1743694246116,-1540.65973131,0.0003,2]
[357077908,1743694246126,-212.0,0.0003,2]
[357077909,1743694246135,-592.7,0.00030137,2]
[357077910,1743694246146,-574.66464858,0.00030252,5]
[357077911,1743694246159,-891.27442562,0.00030297,2]
[357077912,1743694246169,-4974.29770333,0.00030744,2]
[357077913,1743694246178,-592.7,0.00031507,2]
[357077914,1743694246189,-466.109,0.0003199,31]
[357077915,1743694246198,-188.90152925,0.0003199,31]
[357077916,1743694246208,-5696.817452,0.0003199,2]
[357077917,1743694246217,-86508.11678903,0.00032,2]
[357077918,1743694246227,-2000.0,0.00032154,4]
[357077919,1743694246237,-193.61970565,0.000322,2]
[357077920,1743694246247,-250.04,0.00032374,2]
[357077921,1743694246256,-250.04,0.00032382,2]
[357077922,1743694246267,-250.04,0.00032391,2]
[357077923,1743694246279,-250.04,0.00032399,2]
[357077924,1743694246290,-250.04,0.00032408,2]
[357077925,1743694246300,-250.04,0.00032416,2]
[357077926,1743694246310,-250.04,0.00032425,2]
[357077927,1743694246320,-250.04,0.00032433,2]
[357077928,1743694246330,-250.04,0.00032442,2]
[357077929,1743694246340,-250.04,0.0003245,2]
[357077930,1743694246350,-250.04,0.00032459,2]
[357077931,1743694246360,-250.04,0.00032468,2]
[357077932,1743694246370,-250.04,0.00032476,2]
[357077933,1743694246380,-250.04,0.00032485,2]
[357077934,1743694246390,-250.04,0.00032493,2]
[357077935,1743694246400,-250.04,0.00032502,2]
[357077936,1743694246410,-250.04,0.0003251,2]
[357077937,1743694246420,-250.04,0.00032519,2]
[357077938,1743694246430,-250.04,0.00032527,2]
[357077939,1743694246440,-250.04,0.00032536,2]
[357077940,1743694246450,-250.10104163,0.00032546,2]
[357077941,1743694246459,-474.88,0.00032646,2]
[357077942,1743694246469,-200.0,0.00032707,2]
[357077943,1743694246479,-151.0,0.00032877,2]
[357077944,1743694246490,-592.7,0.00032877,2]
[357077945,1743694246499,-1053.08806999,0.000329,30]
[357077946,1743694246509,-4974.29770333,0.00032913,2]
[357077947,1743694246519,-399.21,0.00033055,2]
[357077948,1743694246530,-215.71237952,0.000331,2]
[357077949,1743694246540,-13059.0779654,0.00033315,2]
[357077950,1743694246549,-1424.204363,0.00033392,2]
[357077951,1743694246559,-2000.0,0.00033402,2]
[357077952,1743694246568,-767.66,0.00033402,2]
[357077953,1743694246579,-250.0,0.00033673,2]
[357077954,1743694246589,-200.0,0.00033762,2]
[357077955,1743694246599,-3600.0,0.000338,12]
[357077956,1743694246609,-250.0,0.000339,2]
[357077957,1743694246618,-2678.80646268,0.000339,2]
[357077958,1743694246628,-2500.0,0.000339,2]
[357077959,1743694246637,-580.0191,0.000339,2]
[357077960,1743694246647,-5500.0,0.000339,12]
[357077961,1743694246656,-2848.408726,0.0003399,2]
[357077962,1743694246665,-151.61,0.0003399,2]
[357077963,1743694246675,-151.61,0.0003399,2]
[357077965,1743694246685,-1000000.0,0.00034,14]
[357077967,1743694246695,-4679.45234316,0.00034,2]
[357077970,1743694246705,-151.0,0.00034,7]
[357077972,1743694246714,-158.032676,0.00034,7]
[357077974,1743694246723,-151.0,0.00034,7]
[357077975,1743694246732,-151.0,0.00034,7]
[357077976,1743694246741,-20295.3,0.00034041,2]
[357077977,1743694246751,-188.07,0.000344,2]
[357077978,1743694246761,-15834.68861179,0.0003458,2]
[357077979,1743694246771,-162.19,0.00034623,120]
[357077980,1743694246781,-151.61,0.00034774,2]
[357077981,1743694246790,-192.70766067,0.00034784,6]
[357077982,1743694246799,-10061.21152063,0.00034784,2]
[357077983,1743694246810,-291.12860018,0.00034784,2]
[357077984,1743694246820,-688.94386818,0.00034784,2]
[357077985,1743694246829,-7300.0,0.000348,12]
[357077986,1743694246839,-151.61,0.00034874,2]
[357077987,1743694246849,-151.0,0.00034884,7]
[357077988,1743694246858,-151.0,0.00034884,7]
[357077989,1743694246868,-3129.25235863,0.00034884,20]
[357077990,1743694246885,-831.13063498,0.00034884,2]
[357077991,1743694246899,-209318.96944134,0.00034884,2]
[357077992,1743694246915,-150.7225561,0.00034884,2]
[357077993,1743694246928,-248.16937177,0.00034884,2]
[357077994,1743694246940,-163.78393021,0.00034884,2]
[357077995,1743694246951,-1256.84087985,0.00034884,2]
[357077996,1743694246963,-7689.68598192,0.00034884,2]
[357077997,1743694246975,-1037.42563733,0.00034884,2]
[357077998,1743694246988,-592.49662821,0.00034884,2]
[357077999,1743694247000,-9203.6497667,0.00034884,2]
[357078000,1743694247014,-1306.54464926,0.00034884,2]
[357078001,1743694247027,-3407.653129,0.00034884,2]
[357078002,1743694247039,-39522.76502328,0.00034884,2]
[357078003,1743694247053,-10214.42137179,0.00034884,2]
[357078004,1743694247065,-1913.85678819,0.00034884,2]
[357078005,1743694247077,-183.35387646,0.00034884,2]
[357078006,1743694247093,-643.0,0.00034884,2]
[357078007,1743694247104,-966.5411674,0.00034884,2]
[357078008,1743694247115,-4235.15758785,0.00034884,2]
[357078009,1743694247129,-929.83991522,0.00034884,2]
[357078010,1743694247142,-13131.82943832,0.00034884,2]
[357078011,1743694247154,-228.63946744,0.00034884,2]
[357078012,1743694247167,-561.26428823,0.00034884,2]
[357078013,1743694247180,-150.0,0.00034884,2]
[357078014,1743694247193,-7748.72681892,0.00034884,2]
[357078015,1743694247206,-605.06019238,0.00034884,2]
[357078016,1743694247219,-624.20038968,0.00034884,2]
[357078017,1743694247231,-213.98090849,0.00034884,2]
[357078018,1743694247244,-41524.64996169,0.00034884,2]
[357078019,1743694247255,-8115.19607885,0.00034884,2]
[357078020,1743694247271,-228.92816037,0.00034884,2]
[357078021,1743694247283,-123180.26703485,0.00034884,7]
[357078022,1743694247295,-10015.63516224,0.00034884,2]
[357078023,1743694247308,-560.52787006,0.00034884,2]
[357078024,1743694247319,-17119.74255447,0.00034884,2]
[357078025,1743694247331,-229.07428485,0.0003489,2]
[357078026,1743694247343,-1224.31,0.000349,2]
[357078027,1743694247355,-9100.0,0.000349,12]
[357078028,1743694247367,-242628.52150275,0.0003496,2]
[357078029,1743694247381,-500.0,0.00034973,5]
[357078030,1743694247393,-151.0,0.0003499,7]
[357078031,1743694247405,-151.61,0.0003499,2]
[357078032,1743694247417,-151.61,0.0003499,2]
[357078033,1743694247429,-151.61,0.0003499,2]
[357078034,1743694247439,-151.61,0.0003499,2]
[357078035,1743694247449,-151.0,0.0003499,7]
[357078036,1743694247461,-887.0,0.00035,5]
[357078037,1743694247472,-1199000.0,0.00035,30]
[357078038,1743694247485,-29939.57,0.00035,14]
[357078039,1743694247499,-166.42,0.00035,2]
[357078040,1743694247511,-3201.02373111,0.00035,30]
[357078041,1743694247522,-1451.53771829,0.00035,2]
[357078042,1743694247533,-151.0,0.00035,7]
[357078043,1743694247544,-151.0,0.00035,7]
[357078044,1743694247555,-105254.28886207,0.00035,40]
[357078045,1743694247567,-151.0,0.00035,7]
[357078046,1743694247580,-150.67808192,0.00035,30]
[357078047,1743694247592,-208.217218,0.00035,7]
[357078048,1743694247604,-151.0,0.00035,7]
[357078049,1743694247615,-151.0,0.00035,7]
[357078050,1743694247626,-151.0,0.00035,7]
[357078051,1743694247637,-256.744407,0.00035,7]
[357078052,1743694247647,-151.0,0.00035,7]
[357078053,1743694247658,-4974.29770333,0.00035082,2]
[357078054,1743694247674,-300.0,0.00035091,30]
[357078055,1743694247686,-2678.80646259,0.00035344,2]
[357078056,1743694247697,-250.10104161,0.00035605,2]
[357078057,1743694247710,-703.3278,0.00035684,2]
[357078058,1743694247723,-1611.6619,0.00035775,2]
[357078059,1743694247744,-12747.20411894,0.00036,7]
[357078060,1743694247756,-300.0,0.00036,2]
[357078061,1743694247768,-2000.0,0.00036077,4]
[357078062,1743694247781,-250.0,0.0003619,2]
[357078063,1743694247793,-891.27442562,0.00036695,9]
[357078064,1743694247806,-2678.80646259,0.00036789,2]
[357078065,1743694247817,-1259.59,0.00036864,2]
[357078066,1743694247829,-766.52875872,0.000372,103]
[357078067,1743694247842,-766.52875871,0.000372,103]
[357078068,1743694247853,-766.52875871,0.000372,103]
[357078069,1743694247865,-4974.29770333,0.00037251,2]
[357078070,1743694247877,-300.0,0.00038,2]
[357078071,1743694247889,-300.0,0.00038,2]
[357078072,1743694247901,-2678.80646259,0.00038233,2]
[357078073,1743694247913,-321.39,0.0003829,2]
[357078074,1743694247925,-2364.15,0.00038296,2]
[357078075,1743694247937,-150.0,0.00038369,3]
[357078076,1743694247949,-150.0,0.00038369,3]
[357078077,1743694247961,-150.0,0.00038369,3]
[357078078,1743694247972,-150.0,0.00038369,3]
[357078079,1743694247984,-150.0,0.00038369,3]
[357078080,1743694247995,-150.0,0.00038369,3]
[357078081,1743694248007,-150.0,0.00038369,3]
[357078082,1743694248018,-150.0,0.00038369,3]
[357078083,1743694248031,-300.0,0.0003838,2]
[357078084,1743694248042,-300.0,0.0003838,2]
[357078085,1743694248054,-474.88,0.00038443,2]
[357078086,1743694248066,-1252.652748,0.00038489,4]
[357078087,1743694248079,-150.0,0.00038568,2]
[357078088,1743694248094,-1716.22,0.00038596,2]
[357078089,1743694248106,-256.3,0.00038596,4]
[357078090,1743694248118,-250.10104161,0.00038664,2]
[357078091,1743694248132,-1000.0,0.00038685,2]
[357078092,1743694248143,-5609.05,0.000387,2]
[357078093,1743694248155,-29939.57,0.000387,14]
[357078094,1743694248167,-300.0,0.0003876,2]
[357078095,1743694248178,-181.0,0.0003876,2]
[357078096,1743694248189,-150.0,0.00038782,7]
[357078097,1743694248201,-23900.0,0.00038782,2]
[357078098,1743694248212,-161.6775,0.00038785,2]
[357078099,1743694248223,-156.73,0.00038792,2]
[357078100,1743694248235,-3936.33,0.00038878,2]
[357078101,1743694248247,-1340.6696316,0.00038896,5]
[357078102,1743694248259,-300.0,0.00038962,2]
[357078103,1743694248272,-783.37,0.00038993,2]
[357078104,1743694248283,-368.7964,0.00039043,2]
[357078105,1743694248295,-1541.4,0.00039063,2]
[357078106,1743694248307,-160.72,0.00039102,120]
[357078107,1743694248319,-1259.59,0.00039128,2]
[357078108,1743694248332,-300.0,0.0003914,2]
[357078109,1743694248343,-43142.51,0.00039143,2]
[357078110,1743694248355,-4974.29770333,0.0003942,2]
[357078111,1743694248367,-300.0,0.0003952,2]
[357078112,1743694248379,-150.0,0.00039598,2]
[357078113,1743694248391,-2678.80646259,0.00039678,2]
[357078114,1743694248403,-221.06146178,0.0003969,14]
[357078115,1743694248415,-200.0,0.0003969,2]
[357078116,1743694248427,-222.0,0.0003969,3]
[357078117,1743694248439,-9304.45,0.000397,2]
[357078118,1743694248450,-5609.05,0.000397,2]
[357078119,1743694248462,-209.0,0.0003971,2]
[357078120,1743694248474,-151.22518975,0.00039785,5]
[357078121,1743694248485,-450.0,0.000399,4]
[357078122,1743694248496,-1000.0,0.0004,8]
[357078123,1743694248508,-1000.0,0.0004,8]
[357078124,1743694248519,-1000.0,0.0004,8]
[357078125,1743694248532,-550.0,0.0004,8]
[357078126,1743694248544,-1000.0,0.0004,5]
[357078127,1743694248555,-1008.0,0.0004,5]
[357078128,1743694248568,-14707.52370988,0.0004,3]
[357078129,1743694248579,-8332.76333996,0.0004,2]
[357078130,1743694248591,-177.35917467,0.0004,10]
[357078131,1743694248602,-169.15939,0.0004,14]
[357078132,1743694248615,-153.046983,0.0004,14]
[357078133,1743694248626,-150.0,0.0004,8]
[357078134,1743694248638,-150.0,0.0004,8]
[357078135,1743694248649,-500.0,0.0004,8]
[357078136,1743694248660,-2549.0,0.0004,8]
[357078137,1743694248672,-150.0,0.00040027,8]
[357078138,1743694248682,-150.0,0.00040027,8]
[357078139,1743694248694,-500.0,0.00040027,8]
[357078140,1743694248706,-2549.0,0.00040027,8]
[357078141,1743694248717,-150.0,0.00040055,8]
[357078142,1743694248729,-200.0,0.00040055,8]
[357078143,1743694248741,-500.0,0.00040055,8]
[357078144,1743694248752,-2549.0,0.00040055,8]
[357078145,1743694248763,-193.0,0.00040082,8]
[357078146,1743694248775,-500.0,0.00040082,8]
[357078147,1743694248785,-2549.0,0.00040082,8]
[357078148,1743694248796,-200.0,0.00040087,2]
[357078149,1743694248812,-500.0,0.0004011,8]
[357078150,1743694248824,-2549.0,0.0004011,8]
[357078151,1743694248835,-500.0,0.00040137,8]
[357078152,1743694248846,-2549.0,0.00040137,8]
[357078153,1743694248857,-766.52875871,0.00040148,120]
[357078154,1743694248869,-500.0,0.00040164,8]
[357078155,1743694248880,-2549.0,0.00040164,8]
[357078156,1743694248891,-812.91460935,0.00040192,8]
[357078157,1743694248902,-2549.0,0.00040192,8]
[357078158,1743694248912,-2549.0,0.00040219,8]
[357078159,1743694248923,-2549.0,0.00040247,8]
[357078160,1743694248934,-2549.0,0.00040274,8]
[357078161,1743694248945,-150.0,0.0004028,4]
[357078162,1743694248956,-2549.0,0.00040301,8]
[357078163,1743694248967,-2549.0,0.00040329,8]
[357078164,1743694248978,-2549.0,0.00040356,8]
[357078165,1743694248989,-2549.0,0.00040384,8]
[357078166,1743694249000,-2549.0,0.00040411,8]
[357078167,1743694249011,-2549.0,0.00040438,8]
[357078168,1743694249022,-928.15346081,0.00040452,5]
[357078169,1743694249034,-2549.0,0.00040466,8]
[357078170,1743694249044,-2549.0,0.00040493,8]
[357078171,1743694249055,-29939.57,0.000405,14]
[357078172,1743694249066,-151.0,0.000405,14]
[357078173,1743694249079,-2551.75740879,0.00040521,8]
[357078174,1743694249091,-3672.95,0.000406,7]
[357078175,1743694249102,-150.0,0.00040628,2]
[357078176,1743694249114,-12015.7695,0.00040654,2]
[357078177,1743694249126,-1000.0,0.0004072,2]
[357078178,1743694249137,-364.9361,0.0004073,2]
[357078179,1743694249148,-151.61,0.0004082,2]
[357078180,1743694249159,-150.0,0.00040829,3]
[357078181,1743694249171,-67636.94851317,0.0004083,2]
[357078182,1743694249183,-1000.0,0.00041,9]
[357078183,1743694249193,-1000.0,0.00041,9]
[357078184,1743694249204,-600.0,0.00041,2]
[357078185,1743694249215,-308.4240773,0.00041,42]
[357078186,1743694249226,-176.0,0.00041,14]
[357078187,1743694249238,-151.92,0.00041064,2]
[357078188,1743694249249,-151.47,0.00041064,2]
[357078189,1743694249261,-886.96,0.00041064,2]
[357078190,1743694249273,-223.15,0.00041064,2]
[357078191,1743694249286,-150.0,0.00041064,2]
[357078192,1743694249298,-150.0,0.00041064,2]
[357078193,1743694249311,-500.25376766,0.00041096,10]
[357078194,1743694249323,-500.0,0.00041096,31]
[357078195,1743694249543,-500.0,0.00041096,31]
[357078196,1743694249640,-261.82911394,0.00041096,31]
[357078197,1743694249655,-500.0,0.00041096,31]
[357078198,1743694249664,-2678.80646259,0.00041122,15]
[357078199,1743694249675,-156.73,0.00041217,2]
[357078200,1743694249684,-209.0,0.0004122,2]
[357078201,1743694249694,-1259.59,0.00041392,2]
[357078202,1743694249703,-6430.74324493,0.00041498,14]
[357078203,1743694249713,-151.0,0.00041498,14]
[357078204,1743694249723,-151.0,0.00041498,14]
[357078205,1743694249733,-151.0,0.00041498,14]
[357078206,1743694249743,-151.0,0.00041498,14]
[357078207,1743694249754,-9304.45,0.000415,2]
[357078208,1743694249763,-5609.05,0.000415,2]
[357078209,1743694249772,-153.954508,0.000415,14]
[357078210,1743694249784,-151.0,0.000415,14]
[357078211,1743694249796,-150.0,0.00041658,2]
[357078212,1743694249806,-250.10104161,0.00041723,4]
[357078213,1743694249815,-150.0,0.00041886,30]
[357078214,1743694249826,-150.0,0.00041886,30]
[357078215,1743694249837,-150.0,0.00041886,30]
[357078216,1743694249847,-150.0,0.00041886,30]
[357078217,1743694249857,-150.0,0.00041886,30]
[357078218,1743694249867,-152.0,0.00041913,4]
[357078219,1743694249877,-2592.82837325,0.0004198,120]
[357078220,1743694249887,-151.0,0.0004198,14]
[357078221,1743694249896,-151.0,0.0004198,14]
[357078222,1743694249907,-151.0,0.0004198,14]
[357078223,1743694249917,-151.0,0.0004198,14]
[357078224,1743694249926,-151.0,0.0004198,14]
[357078225,1743694249936,-151.0,0.0004198,14]
[357078226,1743694249946,-151.0,0.0004198,14]
[357078227,1743694249955,-151.0,0.0004198,14]
[357078228,1743694249964,-129750.08519493,0.00042,2]
[357078229,1743694249974,-1000.0,0.00042,9]
[357078230,1743694249984,-1000.0,0.00042,9]
[357078231,1743694249993,-1000.0,0.00042,6]
[357078232,1743694250002,-1000.0,0.00042,6]
[357078233,1743694250012,-41077.86168518,0.00042,2]
[357078234,1743694250022,-449.9999993,0.00042,43]
[357078235,1743694250033,-29939.57,0.00042,60]
[357078236,1743694250044,-151.0,0.00042,14]
[357078237,1743694250054,-151.0,0.00042,14]
[357078238,1743694250064,-151.0,0.00042,14]
[357078239,1743694250073,-151.0,0.00042,14]
[357078240,1743694250087,-457.291812,0.00042,14]
[357078241,1743694250097,-457.291812,0.00042,14]
[357078242,1743694250106,-151.0,0.00042,14]
[357078243,1743694250115,-151.0,0.00042,14]
[357078244,1743694250127,-151.0,0.00042,14]
[357078245,1743694250136,-1331.52766829,0.0004201,2]
[357078246,1743694250146,-582.0,0.000421,3]
[357078247,1743694250155,-6985.0,0.00042349,2]
[357078248,1743694250166,-2678.80646259,0.00042567,15]
[357078249,1743694250176,-150.0,0.00042689,2]
[357078250,1743694250186,-209.0,0.0004273,2]
[357078251,1743694250195,-151.0,0.0004273,14]
[357078252,1743694250205,-300.0,0.00042785,30]
[357078253,1743694250215,-10061.21152062,0.00042842,2]
[357078254,1743694250224,-291.12860017,0.00042842,2]
[357078255,1743694250234,-200.0,0.00042887,120]
[357078256,1743694250244,-1186.0,0.00043,7]
[357078257,1743694250257,-650.0,0.00043,2]
[357078258,1743694250266,-891.27442562,0.00043092,17]
[357078259,1743694250277,-9304.45,0.000431,2]
[357078260,1743694250287,-5609.05,0.000431,2]
[357078261,1743694250297,-234.0,0.000431,30]
[357078262,1743694250307,-176.0,0.00043151,90]
[357078263,1743694250316,-162.19,0.00043279,120]
[357078264,1743694250326,-2000.0,0.000433,2]
[357078265,1743694250336,-1000.0,0.0004352,2]
[357078266,1743694250347,-153.98,0.000436,36]
[357078267,1743694250356,-153.98,0.000436,36]
[357078268,1743694250366,-153.98,0.000436,36]
[357078269,1743694250375,-153.98,0.000436,36]
[357078270,1743694250385,-153.98,0.000436,36]
[357078271,1743694250395,-153.98,0.000436,36]
[357078272,1743694250404,-156.73,0.00043641,2]
[357078273,1743694250414,-1259.59,0.00043656,2]
[357078274,1743694250423,-500.0,0.00043656,120]
[357078275,1743694250433,-500.0,0.00043656,120]
[357078276,1743694250443,-500.0,0.00043656,120]
[357078277,1743694250452,-500.0,0.00043656,120]
[357078278,1743694250462,-953.0,0.00043656,120]
[357078279,1743694250472,-500.0,0.00043656,120]
[357078280,1743694250481,-500.0,0.00043656,120]
[357078281,1743694250490,-500.0,0.00043656,120]
[357078282,1743694250500,-500.0,0.00043656,120]
[357078283,1743694250509,-500.0,0.00043656,120]
[357078284,1743694250519,-500.0,0.00043656,120]
[357078285,1743694250528,-500.0,0.00043656,120]
[357078286,1743694250538,-500.0,0.00043656,120]
[357078287,1743694250548,-500.0,0.00043656,120]
[357078288,1743694250558,-500.0,0.00043656,120]
[357078289,1743694250567,-500.0,0.00043656,120]
[357078290,1743694250577,-500.0,0.00043656,120]
[357078291,1743694250587,-500.0,0.00043656,120]
[357078292,1743694250596,-500.0,0.00043656,120]
[357078293,1743694250605,-500.0,0.00043656,120]
[357078294,1743694250615,-500.0,0.00043656,120]
[357078295,1743694250624,-500.0,0.00043656,120]
[357078296,1743694250634,-500.0,0.00043656,120]
[357078297,1743694250643,-500.0,0.00043656,120]
[357078298,1743694250652,-500.0,0.00043656,120]
[357078299,1743694250662,-500.0,0.00043656,120]
[357078300,1743694250671,-500.0,0.00043656,120]
[357078301,1743694250681,-500.0,0.00043656,120]
[357078302,1743694250690,-500.0,0.00043656,120]
[357078303,1743694250700,-500.0,0.00043656,120]
[357078304,1743694250709,-500.0,0.00043656,120]
[357078305,1743694250718,-500.0,0.00043656,120]
[357078306,1743694250728,-500.0,0.00043656,120]
[357078307,1743694250738,-500.0,0.00043656,120]
[357078308,1743694250747,-500.0,0.00043656,120]
[357078309,1743694250756,-500.0,0.00043656,120]
[357078310,1743694250765,-500.0,0.00043656,120]
[357078311,1743694250775,-500.0,0.00043656,120]
[357078312,1743694250785,-500.0,0.00043656,120]
[357078313,1743694250794,-500.0,0.00043656,120]
[357078314,1743694250803,-500.0,0.00043656,120]
[357078315,1743694250812,-500.0,0.00043656,120]
[357078316,1743694250821,-500.0,0.00043656,120]
[357078317,1743694250830,-500.0,0.00043656,120]
[357078318,1743694250840,-150.0,0.00043719,2]